[Event "Titled Tuesday Blitz May 9 Late 2023"]
[White "Radzhabov, Rodion"]
[Black "Perez Rodriguez, Jennifer"]
[WhiteFideId "884715"]
[BlackFideId "3507831"]
[WhiteElo "2215"]
[BlackElo "2116"]
[Result "1-0"]
[Round "03"]
[TimeControl "180+2"]
[Date "2023.05.09"]
[WhiteClock "0:00:07"]
[BlackClock "0:00:15"]

1. e4 {[%clk 0:02:59]}  e5 {[%clk 0:02:58]} 2. Nf3 {[%clk 0:02:59]}  Nc6 {[%clk 0:02:59]} 3. Nc3 {[%clk 0:02:57]}  Nf6 {[%clk 0:02:58]} 4. Be2 {[%clk 0:02:57]}  d5 {[%clk 0:02:55]} 5. exd5 {[%clk 0:02:57]}  Nxd5 {[%clk 0:02:56]} 6. O-O {[%clk 0:02:58]}  Nxc3 {[%clk 0:02:54]} 7. bxc3 {[%clk 0:02:58]}  Bd6 {[%clk 0:02:54]} 8. d4 {[%clk 0:02:58]}  O-O {[%clk 0:02:51]} 9. Rb1 {[%clk 0:02:58]}  e4 {[%clk 0:02:49]} 10. Nd2 {[%clk 0:02:52]}  f5 {[%clk 0:02:48]} 11. Nc4 {[%clk 0:02:51]}  f4 {[%clk 0:02:41]} 12. Nxd6 {[%clk 0:02:44]}  Qxd6 {[%clk 0:02:40]} 13. Bc4+ {[%clk 0:01:46]}  Kh8 {[%clk 0:02:38]} 14. Re1 {[%clk 0:01:45]}  Bf5 {[%clk 0:02:23]} 15. Rb5 {[%clk 0:01:22]}  Rae8 {[%clk 0:02:15]} 16. Rd5 {[%clk 0:01:21]}  Qh6 {[%clk 0:02:11]} 17. Rc5 {[%clk 0:00:58]}  Qh4 {[%clk 0:01:49]} 18. g3 {[%clk 0:00:50]}  fxg3 {[%clk 0:01:48]} 19. hxg3 {[%clk 0:00:50]}  Qf6 {[%clk 0:01:42]} 20. Bf4 {[%clk 0:00:45]}  Qg6 {[%clk 0:01:32]} 21. Be2 {[%clk 0:00:35]}  Rc8 {[%clk 0:01:16]} 22. Qb1 {[%clk 0:00:26]}  b6 {[%clk 0:01:14]} 23. Rb5 {[%clk 0:00:13]}  e3 {[%clk 0:01:12]} 24. Bxe3 {[%clk 0:00:11]}  Bxc2 {[%clk 0:01:12]} 25. Qc1 {[%clk 0:00:10]}  Be4 {[%clk 0:01:13]} 26. Bf4 {[%clk 0:00:07]}  Rce8 {[%clk 0:01:00]} 27. Bh5 {[%clk 0:00:07]}  Qf6 {[%clk 0:00:42]} 28. Bxe8 {[%clk 0:00:07]}  Rxe8 {[%clk 0:00:43]} 29. Rh5 {[%clk 0:00:06]}  g6 {[%clk 0:00:40]} 30. Re5 {[%clk 0:00:05]}  Nxe5 {[%clk 0:00:23]} 31. Bxe5 {[%clk 0:00:05]}  Rxe5 {[%clk 0:00:23]} 32. dxe5 {[%clk 0:00:06]}  Qf3 {[%clk 0:00:22]} 33. Rxe4 {[%clk 0:00:07]}  Qxe4 {[%clk 0:00:23]} 34. Qg5 {[%clk 0:00:07]}  Qe1+ {[%clk 0:00:20]} 35. Kg2 {[%clk 0:00:08]}  Qe4+ {[%clk 0:00:20]} 36. Kh2 {[%clk 0:00:08]}  Qe2 {[%clk 0:00:15]} 37. Qf6+ {[%clk 0:00:08]}  Kg8 {[%clk 0:00:16]} 38. e6 {[%clk 0:00:09]}  Qh5+ {[%clk 0:00:16]} 39. Kg1 {[%clk 0:00:08]}  Qd5 {[%clk 0:00:16]} 40. Qf7+ {[%clk 0:00:07]}  Kh8 {[%clk 0:00:15]} 41. Qf8# {[%clk 0:00:07]} 1-0


[Site "https://www.chess.com"]

[Event "Titled Tuesday Blitz May 9 Late 2023"]
[White "Vakhlamov, Igor L."]
[Black "Goncalves, Davi Sulzbacher"]
[WhiteFideId "24126748"]
[BlackFideId "2154510"]
[WhiteElo "2407"]
[BlackElo "2182"]
[Result "1-0"]
[Round "03"]
[TimeControl "180+2"]
[Date "2023.05.09"]
[WhiteClock "0:00:16"]
[BlackClock "0:00:00"]

1. e4 {[%clk 0:03:00]}  c6 {[%clk 0:02:59]} 2. d4 {[%clk 0:02:59]}  d5 {[%clk 0:02:59]} 3. exd5 {[%clk 0:03:00]}  cxd5 {[%clk 0:03:00]} 4. c4 {[%clk 0:03:01]}  Nf6 {[%clk 0:03:00]} 5. Nc3 {[%clk 0:03:01]}  e6 {[%clk 0:03:00]} 6. c5 {[%clk 0:03:01]}  Be7 {[%clk 0:03:00]} 7. Bb5+ {[%clk 0:03:01]}  Bd7 {[%clk 0:02:59]} 8. Bxd7+ {[%clk 0:03:01]}  Qxd7 {[%clk 0:02:57]} 9. b4 {[%clk 0:03:01]}  O-O {[%clk 0:02:54]} 10. Nf3 {[%clk 0:03:00]}  a6 {[%clk 0:02:54]} 11. O-O {[%clk 0:02:59]}  Nc6 {[%clk 0:02:53]} 12. Rb1 {[%clk 0:02:59]}  Ne4 {[%clk 0:02:52]} 13. Qc2 {[%clk 0:03:00]}  Nxc3 {[%clk 0:02:42]} 14. Qxc3 {[%clk 0:03:01]}  Bf6 {[%clk 0:02:42]} 15. Bf4 {[%clk 0:02:59]}  Rfe8 {[%clk 0:02:40]} 16. Rfe1 {[%clk 0:02:59]}  h6 {[%clk 0:02:35]} 17. h3 {[%clk 0:02:58]}  Rac8 {[%clk 0:02:31]} 18. a4 {[%clk 0:02:58]}  g5 {[%clk 0:02:13]} 19. Bg3 {[%clk 0:02:54]}  Ne7 {[%clk 0:02:11]} 20. Ne5 {[%clk 0:02:53]}  Qxa4 {[%clk 0:02:10]} 21. b5 {[%clk 0:02:49]}  Bxe5 {[%clk 0:02:01]} 22. Bxe5 {[%clk 0:02:46]}  axb5 {[%clk 0:02:01]} 23. Rb4 {[%clk 0:02:43]}  Qa2 {[%clk 0:01:54]} 24. Rxb5 {[%clk 0:02:39]}  Ng6 {[%clk 0:01:49]} 25. Rxb7 {[%clk 0:02:36]}  Nxe5 {[%clk 0:01:39]} 26. Rxe5 {[%clk 0:02:36]}  Rb8 {[%clk 0:01:38]} 27. Rxb8 {[%clk 0:02:07]}  Rxb8 {[%clk 0:01:39]} 28. Re1 {[%clk 0:02:05]}  Rb3 {[%clk 0:01:34]} 29. Qc1 {[%clk 0:02:02]}  Rb2 {[%clk 0:01:34]} 30. Qe3 {[%clk 0:01:57]}  Rc2 {[%clk 0:01:27]} 31. h4 {[%clk 0:01:24]}  Kh7 {[%clk 0:01:14]} 32. hxg5 {[%clk 0:01:23]}  hxg5 {[%clk 0:01:15]} 33. Qxg5 {[%clk 0:01:22]}  Rc3 {[%clk 0:00:22]} 34. g3 {[%clk 0:01:09]}  Qc2 {[%clk 0:00:09]} 35. Kg2 {[%clk 0:00:39]}  Qg6 {[%clk 0:00:09]} 36. Rh1+ {[%clk 0:00:39]}  Kg7 {[%clk 0:00:09]} 37. Qe5+ {[%clk 0:00:39]}  Kf8 {[%clk 0:00:10]} 38. Qd6+ {[%clk 0:00:33]}  Kg7 {[%clk 0:00:10]} 39. Qe5+ {[%clk 0:00:31]}  Kf8 {[%clk 0:00:11]} 40. Rh8+ {[%clk 0:00:30]}  Ke7 {[%clk 0:00:11]} 41. Qd6+ {[%clk 0:00:25]}  Kf6 {[%clk 0:00:10]} 42. Qd8+ {[%clk 0:00:25]}  Kf5 {[%clk 0:00:10]} 43. Rh4 {[%clk 0:00:22]}  Qg5 {[%clk 0:00:03]} 44. Rf4+ {[%clk 0:00:17]}  Qxf4 {[%clk 0:00:03]} 45. gxf4 {[%clk 0:00:16]}  Ke4 {[%clk 0:00:04]} 46. Qd7 {[%clk 0:00:16]}  Kxd4 {[%clk 0:00:00]} 47. c6 {[%clk 0:00:16]} 1-0


[Site "https://www.chess.com"]

[Event "Titled Tuesday Blitz May 9 Late 2023"]
[White "Ladan, Nicholas"]
[Black "Gorshtein, Ido"]
[WhiteFideId "30918855"]
[BlackFideId "2815532"]
[WhiteElo "2167"]
[BlackElo "2415"]
[Result "1-0"]
[Round "03"]
[TimeControl "180+2"]
[Date "2023.05.09"]
[WhiteClock "0:00:07"]
[BlackClock "0:00:00"]

1. d4 {[%clk 0:03:00]}  Nf6 {[%clk 0:02:58]} 2. Nf3 {[%clk 0:03:00]}  e6 {[%clk 0:02:58]} 3. g3 {[%clk 0:03:00]}  d5 {[%clk 0:02:57]} 4. Bg2 {[%clk 0:03:01]}  b5 {[%clk 0:02:57]} 5. O-O {[%clk 0:03:00]}  Be7 {[%clk 0:02:57]} 6. c3 {[%clk 0:02:58]}  O-O {[%clk 0:02:56]} 7. Ne5 {[%clk 0:02:41]}  Nfd7 {[%clk 0:02:54]} 8. Bf4 {[%clk 0:02:33]}  Nxe5 {[%clk 0:02:53]} 9. Bxe5 {[%clk 0:02:25]}  Bb7 {[%clk 0:02:54]} 10. a4 {[%clk 0:02:22]}  b4 {[%clk 0:02:47]} 11. c4 {[%clk 0:02:21]}  a5 {[%clk 0:02:35]} 12. Nd2 {[%clk 0:02:21]}  Nc6 {[%clk 0:02:31]} 13. cxd5 {[%clk 0:02:20]}  Nxe5 {[%clk 0:02:24]} 14. d6 {[%clk 0:02:01]}  cxd6 {[%clk 0:02:15]} 15. Bxb7 {[%clk 0:02:00]}  Ra7 {[%clk 0:02:12]} 16. dxe5 {[%clk 0:01:55]}  Rxb7 {[%clk 0:02:11]} 17. exd6 {[%clk 0:01:55]}  Qxd6 {[%clk 0:02:07]} 18. Nc4 {[%clk 0:01:52]}  Qc5 {[%clk 0:02:04]} 19. b3 {[%clk 0:01:49]}  Rd8 {[%clk 0:02:02]} 20. Qc2 {[%clk 0:01:47]}  h5 {[%clk 0:02:02]} 21. Rad1 {[%clk 0:01:46]}  Rbd7 {[%clk 0:01:56]} 22. Rxd7 {[%clk 0:01:45]}  Rxd7 {[%clk 0:01:57]} 23. Rd1 {[%clk 0:01:45]}  Rc7 {[%clk 0:01:46]} 24. Qe4 {[%clk 0:01:41]}  h4 {[%clk 0:01:41]} 25. Kg2 {[%clk 0:01:35]}  g6 {[%clk 0:01:37]} 26. Qa8+ {[%clk 0:01:19]}  Kg7 {[%clk 0:01:32]} 27. Qxa5 {[%clk 0:01:15]}  Qc6+ {[%clk 0:01:24]} 28. f3 {[%clk 0:01:13]}  Bc5 {[%clk 0:01:15]} 29. Rd8 {[%clk 0:01:04]}  Ra7 {[%clk 0:01:04]} 30. Qb5 {[%clk 0:01:00]}  Qxb5 {[%clk 0:01:01]} 31. axb5 {[%clk 0:01:01]}  Rb7 {[%clk 0:01:02]} 32. Ne5 {[%clk 0:00:45]}  Rxb5 {[%clk 0:00:56]} 33. Rd7 {[%clk 0:00:45]}  Be7 {[%clk 0:00:46]} 34. Nxg6 {[%clk 0:00:36]}  Kxg6 {[%clk 0:00:43]} 35. Rxe7 {[%clk 0:00:36]}  Rc5 {[%clk 0:00:42]} 36. Rb7 {[%clk 0:00:34]}  Rc2 {[%clk 0:00:42]} 37. Kf2 {[%clk 0:00:32]}  hxg3+ {[%clk 0:00:35]} 38. hxg3 {[%clk 0:00:33]}  Kf6 {[%clk 0:00:35]} 39. Rxb4 {[%clk 0:00:33]}  Rb2 {[%clk 0:00:35]} 40. Ke3 {[%clk 0:00:31]}  Ke7 {[%clk 0:00:35]} 41. Rb7+ {[%clk 0:00:30]}  Kf6 {[%clk 0:00:36]} 42. g4 {[%clk 0:00:31]}  Rb1 {[%clk 0:00:36]} 43. Rb6 {[%clk 0:00:28]}  Kg7 {[%clk 0:00:36]} 44. Kf4 {[%clk 0:00:28]}  Rb2 {[%clk 0:00:37]} 45. e3 {[%clk 0:00:27]}  Kf6 {[%clk 0:00:37]} 46. g5+ {[%clk 0:00:27]}  Kg7 {[%clk 0:00:36]} 47. b4 {[%clk 0:00:26]}  Rb3 {[%clk 0:00:36]} 48. Ke4 {[%clk 0:00:21]}  Kg6 {[%clk 0:00:36]} 49. f4 {[%clk 0:00:20]}  Kg7 {[%clk 0:00:32]} 50. Rb8 {[%clk 0:00:16]}  Kg6 {[%clk 0:00:31]} 51. b5 {[%clk 0:00:16]}  Kg7 {[%clk 0:00:31]} 52. b6 {[%clk 0:00:16]}  Rb5 {[%clk 0:00:30]} 53. b7 {[%clk 0:00:15]}  Rb3 {[%clk 0:00:22]} 54. Ke5 {[%clk 0:00:15]}  Rb5+ {[%clk 0:00:20]} 55. Kd6 {[%clk 0:00:15]}  Rb1 {[%clk 0:00:21]} 56. Ke7 {[%clk 0:00:15]}  Rb3 {[%clk 0:00:18]} 57. e4 {[%clk 0:00:15]}  Rb4 {[%clk 0:00:16]} 58. f5 {[%clk 0:00:10]}  exf5 {[%clk 0:00:16]} 59. e5 {[%clk 0:00:11]}  f4 {[%clk 0:00:07]} 60. g6 {[%clk 0:00:11]}  fxg6 {[%clk 0:00:03]} 61. e6 {[%clk 0:00:11]}  f3 {[%clk 0:00:04]} 62. Kd6 {[%clk 0:00:10]}  f2 {[%clk 0:00:04]} 63. e7 {[%clk 0:00:05]}  f1=Q {[%clk 0:00:03]} 64. e8=Q {[%clk 0:00:06]}  Qd3+ {[%clk 0:00:03]} 65. Kc7 {[%clk 0:00:05]}  Qc3+ {[%clk 0:00:03]} 66. Qc6 {[%clk 0:00:05]}  Rc4 {[%clk 0:00:03]} 67. Rg8+ {[%clk 0:00:05]}  Kh6 {[%clk 0:00:02]} 68. Rxg6+ {[%clk 0:00:05]}  Kh5 {[%clk 0:00:01]} 69. Rh6+ {[%clk 0:00:05]}  Kg5 {[%clk 0:00:01]} 70. Rg6+ {[%clk 0:00:06]}  Kf5 {[%clk 0:00:01]} 71. b8=Q {[%clk 0:00:06]}  Rxc6+ {[%clk 0:00:00]} 72. Rxc6 {[%clk 0:00:07]} 1-0


[Site "https://www.chess.com"]

[Event "Titled Tuesday Blitz May 9 Late 2023"]
[White "Prydun, Andriy"]
[Black "Goltsev, Dmitry"]
[WhiteFideId "14145898"]
[BlackFideId "24176710"]
[WhiteElo "2164"]
[BlackElo "2356"]
[Result "0-1"]
[Round "03"]
[TimeControl "180+2"]
[Date "2023.05.09"]
[WhiteClock "0:00:01"]
[BlackClock "0:02:22"]

1. e4 {[%clk 0:02:10]}  e6 {[%clk 0:02:56]} 2. Ne2 {[%clk 0:01:57]}  d5 {[%clk 0:02:57]} 3. Ng3 {[%clk 0:01:57]}  Nf6 {[%clk 0:02:57]} 4. Nc3 {[%clk 0:01:56]}  d4 {[%clk 0:02:57]} 5. Nb1 {[%clk 0:01:55]}  c5 {[%clk 0:02:58]} 6. Bd3 {[%clk 0:01:36]}  Nc6 {[%clk 0:02:58]} 7. O-O {[%clk 0:01:32]}  e5 {[%clk 0:02:57]} 8. a3 {[%clk 0:01:20]}  a6 {[%clk 0:02:56]} 9. b4 {[%clk 0:01:10]}  h5 {[%clk 0:02:54]} 10. Bb2 {[%clk 0:01:06]}  h4 {[%clk 0:02:52]} 11. Nf5 {[%clk 0:01:06]}  g6 {[%clk 0:02:49]} 12. f4 {[%clk 0:01:03]}  gxf5 {[%clk 0:02:45]} 13. fxe5 {[%clk 0:00:58]}  Nxe4 {[%clk 0:02:45]} 14. Qe2 {[%clk 0:00:41]}  Be6 {[%clk 0:02:40]} 15. c3 {[%clk 0:00:37]}  Qd5 {[%clk 0:02:36]} 16. b5 {[%clk 0:00:28]}  axb5 {[%clk 0:02:33]} 17. Bxb5 {[%clk 0:00:29]}  O-O-O {[%clk 0:02:31]} 18. c4 {[%clk 0:00:11]}  d3 {[%clk 0:02:25]} 19. Qe3 {[%clk 0:00:07]}  Qd7 {[%clk 0:02:26]} 20. Nc3 {[%clk 0:00:06]}  Bh6 {[%clk 0:02:25]} 21. Qf3 {[%clk 0:00:04]}  Nxd2 {[%clk 0:02:24]} 22. Qf2 {[%clk 0:00:04]}  Nxf1 {[%clk 0:02:22]} 23. Rxf1 {[%clk 0:00:03]}  Qd4 {[%clk 0:02:22]} 24. Na4 {[%clk 0:00:01]}  Qxf2+ {[%clk 0:02:22]} 0-1


[Site "https://www.chess.com"]

[Event "Titled Tuesday Blitz May 9 Late 2023"]
[White "Martin Barcelo, Carles"]
[Black "Lavrik, Dmitry"]
[WhiteFideId "24561444"]
[BlackFideId "24113190"]
[WhiteElo "2089"]
[BlackElo "2345"]
[Result "0-1"]
[Round "03"]
[TimeControl "180+2"]
[Date "2023.05.09"]
[WhiteClock "0:00:08"]
[BlackClock "0:00:03"]

1. e4 {[%clk 0:03:00]}  c5 {[%clk 0:02:59]} 2. Nf3 {[%clk 0:02:58]}  d6 {[%clk 0:02:59]} 3. d4 {[%clk 0:02:39]}  cxd4 {[%clk 0:03:00]} 4. Nxd4 {[%clk 0:02:39]}  Nf6 {[%clk 0:03:01]} 5. Nc3 {[%clk 0:02:38]}  Nc6 {[%clk 0:03:01]} 6. f3 {[%clk 0:02:26]}  e5 {[%clk 0:03:00]} 7. Nb3 {[%clk 0:02:14]}  Be7 {[%clk 0:03:01]} 8. Bg5 {[%clk 0:02:13]}  Nxe4 {[%clk 0:02:43]} 9. Bxe7 {[%clk 0:01:41]}  Nxc3 {[%clk 0:02:41]} 10. Bxd8 {[%clk 0:01:41]}  Nxd1 {[%clk 0:02:41]} 11. Rxd1 {[%clk 0:01:42]}  Kxd8 {[%clk 0:02:37]} 12. Rxd6+ {[%clk 0:01:42]}  Kc7 {[%clk 0:02:38]} 13. Rd2 {[%clk 0:01:41]}  Be6 {[%clk 0:02:15]} 14. Nc5 {[%clk 0:01:39]}  Bxa2 {[%clk 0:02:15]} 15. b3 {[%clk 0:01:39]}  Rhd8 {[%clk 0:02:11]} 16. Bd3 {[%clk 0:01:35]}  Nb4 {[%clk 0:01:56]} 17. Ke2 {[%clk 0:01:24]}  Rd5 {[%clk 0:00:32]} 18. Ne4 {[%clk 0:00:48]}  Rad8 {[%clk 0:00:22]} 19. Nc3 {[%clk 0:00:46]}  Rc5 {[%clk 0:00:22]} 20. Nxa2 {[%clk 0:00:29]}  Nxa2 {[%clk 0:00:22]} 21. Ra1 {[%clk 0:00:29]}  Nc3+ {[%clk 0:00:22]} 22. Ke3 {[%clk 0:00:26]}  a5 {[%clk 0:00:22]} 23. Bxh7 {[%clk 0:00:20]}  Nd5+ {[%clk 0:00:22]} 24. Kf2 {[%clk 0:00:16]}  g6 {[%clk 0:00:22]} 25. Rad1 {[%clk 0:00:15]}  Rd7 {[%clk 0:00:05]} 26. Bg8 {[%clk 0:00:13]}  Nf6 {[%clk 0:00:03]} 27. Rxd7+ {[%clk 0:00:12]}  Nxd7 {[%clk 0:00:03]} 28. Bxf7 {[%clk 0:00:13]}  Rxc2+ {[%clk 0:00:04]} 29. Kg3 {[%clk 0:00:14]}  b5 {[%clk 0:00:04]} 30. Be8 {[%clk 0:00:14]}  Nf6 {[%clk 0:00:02]} 31. Bxb5 {[%clk 0:00:13]}  Nh5+ {[%clk 0:00:02]} 32. Kh4 {[%clk 0:00:12]}  Rxg2 {[%clk 0:00:02]} 33. Rd7+ {[%clk 0:00:10]}  Kb6 {[%clk 0:00:02]} 34. Bc4 {[%clk 0:00:10]}  Nf4 {[%clk 0:00:03]} 35. Rd6+ {[%clk 0:00:10]}  Kc5 {[%clk 0:00:03]} 36. Ra6 {[%clk 0:00:08]}  g5# {[%clk 0:00:03]} 0-1


[Site "https://www.chess.com"]

[Event "Titled Tuesday Blitz May 9 Late 2023"]
[White "Bjelobrk, Igor"]
[Black "Mikhalsky, Vladimir"]
[WhiteFideId "4300726"]
[BlackFideId "14144352"]
[WhiteElo "2319"]
[BlackElo "2236"]
[Result "1-0"]
[Round "03"]
[TimeControl "180+2"]
[Date "2023.05.09"]
[WhiteClock "0:00:31"]
[BlackClock "0:00:00"]

1. d4 {[%clk 0:02:53]}  Nf6 {[%clk 0:02:59]} 2. c4 {[%clk 0:02:53]}  g6 {[%clk 0:02:59]} 3. Nc3 {[%clk 0:02:52]}  Bg7 {[%clk 0:02:58]} 4. e4 {[%clk 0:02:51]}  O-O {[%clk 0:02:59]} 5. Nf3 {[%clk 0:02:50]}  d6 {[%clk 0:02:59]} 6. Be2 {[%clk 0:02:49]}  e5 {[%clk 0:03:00]} 7. d5 {[%clk 0:02:47]}  h6 {[%clk 0:02:52]} 8. h3 {[%clk 0:02:36]}  Nh5 {[%clk 0:02:52]} 9. g3 {[%clk 0:02:35]}  a5 {[%clk 0:02:51]} 10. Nh4 {[%clk 0:02:26]}  Nf4 {[%clk 0:02:48]} 11. Bf1 {[%clk 0:02:22]}  Na6 {[%clk 0:02:40]} 12. Nf3 {[%clk 0:02:21]}  Nh5 {[%clk 0:02:38]} 13. Be3 {[%clk 0:02:20]}  Nc5 {[%clk 0:02:27]} 14. Nd2 {[%clk 0:02:19]}  Qe8 {[%clk 0:02:02]} 15. Be2 {[%clk 0:02:16]}  Nf6 {[%clk 0:01:31]} 16. g4 {[%clk 0:02:15]}  c6 {[%clk 0:01:27]} 17. h4 {[%clk 0:02:14]}  cxd5 {[%clk 0:01:27]} 18. cxd5 {[%clk 0:02:13]}  Nh7 {[%clk 0:01:19]} 19. h5 {[%clk 0:02:13]}  Ng5 {[%clk 0:01:08]} 20. f3 {[%clk 0:02:07]}  f5 {[%clk 0:01:05]} 21. Bxg5 {[%clk 0:01:47]}  hxg5 {[%clk 0:01:04]} 22. h6 {[%clk 0:01:46]}  Bf6 {[%clk 0:00:59]} 23. h7+ {[%clk 0:01:46]}  Kh8 {[%clk 0:00:59]} 24. Nc4 {[%clk 0:01:45]}  Be7 {[%clk 0:00:50]} 25. Qd2 {[%clk 0:01:37]}  b5 {[%clk 0:00:45]} 26. Nb6 {[%clk 0:01:37]}  Rb8 {[%clk 0:00:40]} 27. Nxc8 {[%clk 0:01:37]}  Qxc8 {[%clk 0:00:38]} 28. exf5 {[%clk 0:01:01]}  gxf5 {[%clk 0:00:35]} 29. Nxb5 {[%clk 0:01:01]}  fxg4 {[%clk 0:00:28]} 30. fxg4 {[%clk 0:01:01]}  Rxb5 {[%clk 0:00:28]} 31. Bxb5 {[%clk 0:01:00]}  Qxg4 {[%clk 0:00:28]} 32. Rf1 {[%clk 0:00:54]}  Qh4+ {[%clk 0:00:20]} 33. Kd1 {[%clk 0:00:52]}  Ne4 {[%clk 0:00:18]} 34. Rxf8+ {[%clk 0:00:48]}  Bxf8 {[%clk 0:00:18]} 35. Qe1 {[%clk 0:00:46]}  Qg4+ {[%clk 0:00:14]} 36. Be2 {[%clk 0:00:46]}  Qf4 {[%clk 0:00:12]} 37. Kc2 {[%clk 0:00:44]}  Nc5 {[%clk 0:00:12]} 38. Rd1 {[%clk 0:00:43]}  Bg7 {[%clk 0:00:09]} 39. Kb1 {[%clk 0:00:42]}  e4 {[%clk 0:00:09]} 40. Qxa5 {[%clk 0:00:37]}  Qf6 {[%clk 0:00:07]} 41. Qb5 {[%clk 0:00:34]}  Nd3 {[%clk 0:00:04]} 42. Bxd3 {[%clk 0:00:34]}  exd3 {[%clk 0:00:04]} 43. a4 {[%clk 0:00:33]}  Qd4 {[%clk 0:00:02]} 44. Rxd3 {[%clk 0:00:31]}  Qg1+ {[%clk 0:00:00]} 45. Ka2 {[%clk 0:00:31]} 1-0


[Site "https://www.chess.com"]

[Event "Titled Tuesday Blitz May 9 Late 2023"]
[White "Storey, Charles H"]
[Black "Rosen, Eric"]
[WhiteFideId "406686"]
[BlackFideId "2032562"]
[WhiteElo "2196"]
[BlackElo "2331"]
[Result "0-1"]
[Round "03"]
[TimeControl "180+2"]
[Date "2023.05.09"]
[WhiteClock "0:00:25"]
[BlackClock "0:00:07"]

1. e4 {[%clk 0:03:00]}  c5 {[%clk 0:02:57]} 2. Nf3 {[%clk 0:03:00]}  Nc6 {[%clk 0:02:57]} 3. d4 {[%clk 0:03:00]}  cxd4 {[%clk 0:02:56]} 4. Nxd4 {[%clk 0:03:01]}  g6 {[%clk 0:02:57]} 5. c4 {[%clk 0:03:00]}  Nf6 {[%clk 0:02:56]} 6. Nc3 {[%clk 0:02:59]}  d6 {[%clk 0:02:56]} 7. Nc2 {[%clk 0:02:59]}  Bg7 {[%clk 0:02:55]} 8. Be2 {[%clk 0:02:59]}  O-O {[%clk 0:02:56]} 9. O-O {[%clk 0:02:59]}  a5 {[%clk 0:02:57]} 10. Na3 {[%clk 0:02:57]}  a4 {[%clk 0:02:57]} 11. Be3 {[%clk 0:02:51]}  Be6 {[%clk 0:02:56]} 12. f3 {[%clk 0:02:49]}  Qa5 {[%clk 0:02:53]} 13. Qd2 {[%clk 0:02:47]}  Rfc8 {[%clk 0:02:51]} 14. Rfc1 {[%clk 0:02:44]}  Nd7 {[%clk 0:02:48]} 15. Qe1 {[%clk 0:02:34]}  h5 {[%clk 0:02:31]} 16. Kh1 {[%clk 0:02:31]}  Nc5 {[%clk 0:02:13]} 17. Rab1 {[%clk 0:02:26]}  Qd8 {[%clk 0:02:09]} 18. Rd1 {[%clk 0:02:19]}  Qf8 {[%clk 0:02:09]} 19. Qd2 {[%clk 0:02:17]}  Be5 {[%clk 0:02:05]} 20. h3 {[%clk 0:01:54]}  Qg7 {[%clk 0:02:05]} 21. f4 {[%clk 0:01:52]}  Bxc3 {[%clk 0:02:04]} 22. bxc3 {[%clk 0:01:51]}  Nxe4 {[%clk 0:02:04]} 23. Qe1 {[%clk 0:01:51]}  Nxc3 {[%clk 0:01:58]} 24. Rxb7 {[%clk 0:01:42]}  Nxd1 {[%clk 0:01:54]} 25. Qxd1 {[%clk 0:01:41]}  Qc3 {[%clk 0:01:46]} 26. Bc1 {[%clk 0:01:35]}  Rab8 {[%clk 0:01:33]} 27. Bb2 {[%clk 0:01:32]}  Qg3 {[%clk 0:01:32]} 28. Rxb8 {[%clk 0:01:27]}  Rxb8 {[%clk 0:01:32]} 29. Nb5 {[%clk 0:01:27]}  Qxf4 {[%clk 0:00:55]} 30. Bf3 {[%clk 0:01:24]}  Ne5 {[%clk 0:00:51]} 31. Bc1 {[%clk 0:01:02]}  Qxc4 {[%clk 0:00:45]} 32. Nd4 {[%clk 0:01:02]}  Rb1 {[%clk 0:00:41]} 33. Ne2 {[%clk 0:00:54]}  Nxf3 {[%clk 0:00:38]} 34. gxf3 {[%clk 0:00:54]}  Bxh3 {[%clk 0:00:36]} 35. Qd2 {[%clk 0:00:54]}  Bf5 {[%clk 0:00:33]} 36. Kg2 {[%clk 0:00:50]}  Bd3 {[%clk 0:00:32]} 37. Nc3 {[%clk 0:00:47]}  Rb8 {[%clk 0:00:19]} 38. Bb2 {[%clk 0:00:44]}  e5 {[%clk 0:00:14]} 39. Ba3 {[%clk 0:00:42]}  Rc8 {[%clk 0:00:11]} 40. Bb2 {[%clk 0:00:38]}  a3 {[%clk 0:00:09]} 41. Ba1 {[%clk 0:00:36]}  h4 {[%clk 0:00:10]} 42. Qc1 {[%clk 0:00:32]}  Qf4 {[%clk 0:00:09]} 43. Qxf4 {[%clk 0:00:28]}  exf4 {[%clk 0:00:10]} 44. Nd5 {[%clk 0:00:29]}  Rc2+ {[%clk 0:00:09]} 45. Kh3 {[%clk 0:00:29]}  Rxa2 {[%clk 0:00:09]} 46. Nf6+ {[%clk 0:00:27]}  Kf8 {[%clk 0:00:09]} 47. Bc3 {[%clk 0:00:27]}  Rc2 {[%clk 0:00:08]} 48. Bb4 {[%clk 0:00:27]}  a2 {[%clk 0:00:09]} 49. Bxd6+ {[%clk 0:00:27]}  Kg7 {[%clk 0:00:09]} 50. Ne8+ {[%clk 0:00:24]}  Kh6 {[%clk 0:00:08]} 51. Be5 {[%clk 0:00:25]}  Bf5+ {[%clk 0:00:06]} 52. Kxh4 {[%clk 0:00:25]}  Rh2# {[%clk 0:00:07]} 0-1


[Site "https://www.chess.com"]